Cogmind - Beta 17 @@@ ROGUE MODE // 2026.08.01 @ 12:20:09 Player: rogue-rat Result: Destroyed by S-10 Pest with Light Assault Rifle Performance ------------- Evolutions (1) 500 Regions Visited (3) 600 Robots Destroyed (52) 260 Value Destroyed (1334) 1334 Prototype IDs (2) 40 Alien Tech Used (0) 0 Bonus (0) 0 TOTAL SCORE: 2734 Bonus ------- None Cogmind --------- Core Integrity 0/400 Matter 300/300 Energy 280/280 System Corruption 1% Temperature Cool (0) Movement Treading (320) Ox2 Location -9/Mines Parts ------- > --- POWER (1) -------- Cooled Ion Engine > --- PROPULSION (2) --- Light Treads Light Treads > --- UTILITY (3) ------ Heat Sink Huge Storage Unit Structural Scanner > --- WEAPON (3) ------- Beam Rifle Advanced EMP Blaster Katana > --- INVENTORY (25) --- Light Ion Engine Light Nuclear Core Light Nuclear Core Light Nuclear Core Light Treads Light Treads Armored Wheel Improved Heat Sink Small Storage Unit Compact Matter Pod (150) Weight Redist. System Machine Analyzer Visual Processing Unit Sensor Array Seismic Detector Seismic Detector Medium Laser Beam Rifle Heavy Assault Rifle Rocket Launcher Rocket Launcher Mining Laser Peak State ------------ > --- POWER ------------ Cooled Ion Engine > --- PROPULSION ------- Light Treads Light Treads > --- UTILITY ---------- Heat Sink Huge Storage Unit Structural Scanner > --- WEAPON ----------- Beam Rifle Advanced EMP Blaster Katana > --- INVENTORY -------- Light Ion Engine Light Nuclear Core Light Nuclear Core Light Nuclear Core Light Treads Light Treads Armored Wheel Improved Heat Sink Small Storage Unit Compact Matter Pod Weight Redist. System Machine Analyzer Visual Processing Unit Sensor Array Seismic Detector Seismic Detector Medium Laser Beam Rifle Heavy Assault Rifle Rocket Launcher Rocket Launcher Mining Laser [Rating: 21] Favorites ----------- Power Cooled Ion Engine Engine Cooled Ion Engine Propulsion Light Treads Treads Light Treads Wheel Armored Wheel Utility Huge Storage Unit Device Seismic Detector Storage Huge Storage Unit Processor Transport Network Coupler Protection Light Armor Plating Weapon Assault Rifle Energy Gun Beam Rifle Ballistic Gun Assault Rifle Launcher Advanced EMP Blaster Slashing Weapon Katana Build | -11 -10 -9 -9 ------- Run | Yrd Mat Mat Min Slots Evolved 2 | . . 2 . Power . | . . . . Propulsion . | . . . . Utility 1 | . . 1 . Weapon 1 | . . 1 . Parts Attached 35 | 4 12 14 5 Power 4 | . 1 3 . Engine 4 | . 1 3 . Core . | . . . . Reactor . | . . . . Propulsion 8 | 1 4 2 1 Treads 4 | . 2 1 1 Leg . | . . . . Wheel 4 | 1 2 1 . Hover . | . . . . Flight . | . . . . Utility 8 | 1 3 2 2 Device 3 | 1 . . 2 Storage 2 | . 2 . . Processor 1 | . 1 . . Hackware . | . . . . Protection 2 | . . 2 . Artifact . | . . . . Weapon 15 | 2 4 7 2 Energy Gun 6 | . 2 4 . Energy Cannon . | . . . . Ballistic Gun 6 | 2 2 2 . Ballistic Cannon . | . . . . Launcher 2 | . . 1 1 Special Weapon . | . . . . Impact Weapon . | . . . . Slashing Weapon 1 | . . . 1 Piercing Weapon . | . . . . Special Melee Weapon . | . . . . Unidentified Prototypes 2 | . . 2 . Parts Lost 12 | . . 11 1 Power 2 | . . 2 . Propulsion 2 | . . 2 . Utility 2 | . . 1 1 Weapon 6 | . . 6 . Highest Loss Streak 2 | . . 2 1 To Critical Strikes . | . . . . Average Backups 15 | 4 14 21 21 Power 2 | . 1 3 4 Propulsion 2 | 1 2 3 3 Utility 5 | . 3 8 9 Weapon 4 | . 5 6 5 Tool/Special . | . . . . Unused Backups 16 | . . 2 14 Power 3 | . . . 3 Propulsion 1 | . . . 1 Utility 8 | . . 1 7 Weapon 4 | . . 1 3 Tool/Special . | . . . . Average Slot Usage (%) 88 | . 91 78 96 Engine 9 | . 8 7 11 Treads 11 | . 6 3 21 Wheel 9 | . 20 13 . Device 8 | . 6 . 16 Storage 11 | . 12 11 11 Processor 6 | . 7 11 . Protection 1 | . . 2 1 Energy Gun 16 | . 3 18 20 Ballistic Gun 8 | . 24 9 . Launcher 4 | . . . 10 Peak Build Rating 21 | 4 14 17 21 Average Rating 11 | 3 10 13 19 On Entrance 8 | . 4 14 17 Avg Prop Armor Cover (%) 11 | . 13 11 . Naked Turns . | . . . . Heaviest Build 103 | 5 92 98 103 Greatest Support 40 | 16 40 24 40 Greatest Overweight (x) 8 | 1 7 8 2 Average Overweight (x) 3 | . 2 5 2 Largest Inventory Capacity 25 | 5 25 25 25 Average Capacity 18 | 5 22 25 25 Most Carried 25 | 5 22 25 24 Average Carried 15 | 4 14 21 21 Final Capacity 25 | 5 25 25 25 Final Carried 24 | 5 22 24 22 Class Distribution -------------------- 57% | Mutant 10% | Scavenger-Skirmisher 9% | Gunner 7% | Skirmisher 7% | Tank 6% | Scavenger-Mutant Dominant Class ---------------- Mutant | -10/Materials Mutant | -9/Materials Scavenger-Skirmisher | -9/Mines Resources | -11 -10 -9 -9 ----------- Run | Yrd Mat Mat Min Matter Collected 1582 | 312 336 835 99 Remotely . | . . . . Salvage Created 1982 | 52 403 1264 263 Parts 102 | 4 20 65 13 Haulers Intercepted 4 | . 1 3 . Recyclers Shooed 1 | . . 1 . Parts Field Recycled . | . . . . Retrieved Matter . | . . . . Parts Self-Destructed . | . . . . Prevented . | . . . . Parts Restored . | . . . . Kills | -11 -10 -9 -9 ------- Run | Yrd Mat Mat Min Combat Hostiles Destroyed 38 | 2 9 20 7 Guns 35 | 2 9 20 4 AOE 3 | . . . 3 Classes Destroyed 13 | 2 5 5 1 Worker 2 | . . 1 1 Builder 1 | . . . 1 Tunneler 2 | 2 . . . Hauler 4 | . 1 3 . Recycler 4 | . 1 3 . Mechanic 1 | . . 1 . Operator 1 | . 1 . . Watcher 1 | . . 1 . Swarmer 6 | . 3 . 3 Grunt 24 | . 6 14 4 Duelist 1 | . . 1 . Sentry 5 | . . 5 . Assembled 2 | 2 . . . Best Kill Streak 6 | 1 3 6 3 Combat Bots Only 4 | 1 3 4 3 Max Kills in Single Turn 2 | 1 2 2 2 Gunslinging 1 | . 1 1 . Exploded 2 | . . . 2 Melee . | . . . . Uniques/NPCs Destroyed . | . . . . Combat | -11 -10 -9 -9 -------- Run | Yrd Mat Mat Min Hostile Shots Fired 185 | 9 41 103 32 Missed 35 | 1 8 20 6 Hits 150 | 8 33 83 26 Melee 2 | . . 2 . Projectile 148 | 8 33 81 26 Critical Strikes 4 | . . 4 . Damage Taken 2115 | 101 403 1307 304 Core 477 | 12 63 353 49 Absorbed by Shields . | . . . . Regen/Repaired (Parts) 29 | . . 29 . Core Remaining (%) 82 | 95 70 . . Volleys Fired 145 | 12 40 75 18 Largest 3 | 2 2 3 3 Hottest 156 | 40 112 156 156 Shots Fired 355 | 24 80 213 38 Gun 351 | 24 80 213 34 Cannon . | . . . . Launcher 4 | . . . 4 Special . | . . . . Kinetic 199 | 24 62 113 . Thermal 152 | . 18 100 34 Explosive . | . . . . Electromagnetic 4 | . . . 4 Robot Hit Streak 17 | 4 14 17 11 Robot Miss Streak 5 | 5 4 3 2 Penetration Max . | . . . . Secondary Targets 6 | . 2 4 . Max Gunslinging Chain 1 | . 1 1 . Shots Hit Robots 223 | 14 45 136 28 Core Hits 95 | 6 20 53 16 Critical Kills 1 | . . 1 . Critical Parts Destroyed . | . . . . Critical Strikes 5 | . . 3 2 Burn 4 | . . 2 2 Destroy 1 | . . 1 . Melee Attacks 2 | . . . 2 Impact . | . . . . Slashing 2 | . . . 2 Piercing . | . . . . Sneak Attacks . | . . . . Combat Hostiles . | . . . . Follow-up Attacks . | . . . . Damage Inflicted 3327 | 168 638 1990 531 Guns 3106 | 168 638 1957 343 Cannons . | . . . . Explosions 142 | . . . 142 Melee . | . . . . Ramming 79 | . . 33 46 Kinetic 1841 | 168 494 1179 . Thermal 1265 | . 144 778 343 Explosive . | . . . . Electromagnetic 142 | . . . 142 Impact . | . . . . Slashing . | . . . . Piercing . | . . . . Highest Corruption 1 | . . 1 1 Average Corruption 1 | . . 1 1 Corruption Purged . | . . . . Corruption Blocked . | . . . . Effects 17 | . . 4 13 Message Errors 1 | . . 1 . Matter Fused 5 | . . . 5 Heat Flow Errors 2 | . . 1 1 Energy Discharges 5 | . . 1 4 Data Loss (minor) 3 | . . 1 2 Misfires 1 | . . . 1 Overload Shots . | . . . . Overflow Damage 1 | . . . 1 Projectiles . | . . . . Explosions 1 | . . . 1 Melee . | . . . . Knockbacks . | . . . . Impact . | . . . . Kinetic . | . . . . Secondary . | . . . . Self-Inflicted Damage 49 | . . 16 33 Shots 3 | . . . 3 Rammed 6 | . . 2 4 Targets Rammed 6 | . . 2 4 Kicked . | . . . . Crushed . | . . . . Highest Temperature 481 | . 440 368 481 Average Temperature 128 | . 120 120 168 Received Heat Transfer 783 | . 171 531 81 Effects 10 | . 4 3 3 Shutdowns 2 | . 2 . . Energy Bleed 4 | . 2 1 1 Short Circuit 3 | . . 1 2 Damage (minor) 1 | . . 1 . Siege Activations . | . . . . Martial Activations . | . . . . Shielding Activations . | . . . . Robots Disrupted . | . . . . Combat Hostiles . | . . . . Robots Corrupted . | . . . . Combat Hostiles . | . . . . Parts Fried 1 | . . . 1 Impact Corruptions . | . . . . Robots Melted . | . . . . Combat Hostiles . | . . . . Parts Melted 10 | . 2 6 2 Heat Transferred 3848 | . 370 2368 1110 Parts Sabotaged . | . . . . Parts Stolen . | . . . . Parts Stripped . | . . . . Power Chain Reactions . | . . . . Alert | -11 -10 -9 -9 ------- Run | Yrd Mat Mat Min Maximum Alert Level 1 | . . 1 . Low Security (%) 96 | 100 100 87 100 Level 1 3 | . . 12 . Level 2 . | . . . . Level 3 . | . . . . Level 4 . | . . . . Level 5 . | . . . . High Security . | . . . . Max Security . | . . . . Peak Influence 233 | 5 103 233 70 Initial 26 | . . 26 15 Average 37 | . 36 119 7 Influence Increases 1069 | 10 256 606 197 Destroy 0b10 Robot/C 720 | . 180 400 140 Destroy 0b10 Robot/NC 80 | 10 15 45 10 Destroy Leader 180 | . 32 118 30 Successful Hack 22 | . 12 10 . Disable Machine 15 | . . . 15 Destroy Structure 7 | . 2 3 2 Partial Spotted 15 | . . 15 . Lose Combat Pursuer 30 | . 15 15 . Influence Decreases 1007 | 10 193 629 175 Entered New Map 62 | . . 37 25 Time Decay 825 | 10 193 482 140 Lost Part 120 | . . 110 10 Squads Dispatched 4 | . 1 2 1 Investigation 1 | . . 1 . Extermination . | . . . . Reinforcement 3 | . 1 1 1 Assault . | . . . . Garrison . | . . . . Intercept . | . . . . Searches Triggered . | . . . . Construction Impeded 1 | . . . 1 Haulers Reinforced . | . . . . Active Scanning Responses . | . . . . Cargo Convoy Interrupts . | . . . . Stealth | -11 -10 -9 -9 --------- Run | Yrd Mat Mat Min Distress Signals . | . . . . Communications Jammed . | . . . . Distress Signals . | . . . . Times Spotted 56 | 2 17 29 8 Peak Tracking Total 5 | 1 4 5 3 Tactical Retreats 2 | . 1 1 . Traps | -11 -10 -9 -9 ------- Run | Yrd Mat Mat Min Traps Triggered 4 | . 1 3 . Indirectly . | . . . . Trap Hack Attempts . | . . . . Triggered . | . . . . Disarmed . | . . . . Reprogrammed . | . . . . Reused . | . . . . Traps Extracted . | . . . . Installed . | . . . . Triggered . | . . . . Machines | -11 -10 -9 -9 ---------- Run | Yrd Mat Mat Min Machines Disabled 3 | . . 2 1 Max in Single Turn 2 | . . 2 1 Machines Repaired . | . . . . Machines Dismantled . | . . . . Machines Sabotaged . | . . . . Overloaded Fab Kills . | . . . . Hacking | -11 -10 -9 -9 --------- Run | Yrd Mat Mat Min Machines Accessed 6 | . 3 3 . Terminals 4 | . 3 1 . Fabricators . | . . . . Repair Stations 1 | . . 1 . Recycling Units . | . . . . Scanalyzers 1 | . . 1 . Garrison Access . | . . . . Total Hacks 12 | . 6 6 . Successful 8 | . 2 6 . Failed 4 | . 4 . . Catastrophic 2 | . 2 . . Database Lockouts . | . . . . Manual 5 | . 4 1 . Terminals 7 | . 6 1 . Fabricators . | . . . . Repair Stations 2 | . . 2 . Recycling Units . | . . . . Scanalyzers 3 | . . 3 . Garrison Access . | . . . . Terminal Hacks 3 | . 2 1 . Branch Access Points 2 | . 1 1 . Emergency Access Points 1 | . 1 . . Fabricator Hacks . | . . . . Repair Station Hacks 2 | . . 2 . Scan Component 1 | . . 1 . Repair 1 | . . 1 . Recycling Unit Hacks . | . . . . Scanalyzer 3 | . . 3 . Retrieve Study 3 | . . 3 . Garrison Access Hacks . | . . . . Unauthorized Hacks . | . . . . Terminals . | . . . . Fabricators . | . . . . Repair Stations . | . . . . Recycling Units . | . . . . Scanalyzers . | . . . . Garrison Access . | . . . . Data Cores Recovered . | . . . . Used . | . . . . Hacking Detections 3 | . 2 1 . Full Trace Events 2 | . 1 1 . Feedback Events . | . . . . Feedback Blocked . | . . . . Robot Schematics Acquired . | . . . . Robots Built . | . . . . Authchips . | . . . . Time . | . . . . Total Robot Build Rating . | . . . . Part Schematics Acquired . | . . . . Parts Built . | . . . . Authchips . | . . . . Time . | . . . . Total Part Build Rating . | . . . . Part Studies Acquired 2 | . . 2 . Parts Repaired 1 | . . 1 . Time 32 | . . 32 . Parts Recycled . | . . . . Recycled Matter . | . . . . Retrieved Matter . | . . . . Retrieved Components . | . . . . Parts Scanalyzed . | . . . . Part Schematics Acquired . | . . . . Parts Damaged . | . . . . Bothacking | -11 -10 -9 -9 ------------ Run | Yrd Mat Mat Min Used RIF Installer . | . . . . Robots Hacked . | . . . . Non-combat . | . . . . Combat . | . . . . Robot Hacks Applied . | . . . . Relay Couplers Released . | . . . . Fabnet Peak Effective % . | . . . . Robots Rewired . | . . . . Allies Hacked . | . . . . Hacks Repelled . | . . . . Allies | -11 -10 -9 -9 -------- Run | Yrd Mat Mat Min Total Allies . | . . . . Largest Group . | . . . . Highest-Rated Group . | . . . . Highest-Rated Ally . | . . . . Total Orders . | . . . . Ally Attacks . | . . . . Total Damage . | . . . . Kills . | . . . . Allies Corrupted . | . . . . Allies Melted . | . . . . Intel | -11 -10 -9 -9 ------- Run | Yrd Mat Mat Min Active Infowar (turns) 4281 | 1496 664 1258 863 Structural 777 | . . . 777 Seismic 1795 | 1496 299 . . T.N.C. 1709 | . 365 1258 86 Robot Analysis Total . | . . . . Derelict Logs Recovered 1 | . . . 1 Drone Launches . | . . . . Drone Recoveries . | . . . . Exploration | -11 -10 -9 -9 ------------- Run | Yrd Mat Mat Min Turns Passed 4903 | 1582 664 1258 1399 Spaces Moved 1574 | 315 309 544 406 Core 47 | 47 . . . Treads 444 | . 38 . 406 Legs . | . . . . Wheels 1083 | 268 271 544 . Hover . | . . . . Flight . | . . . . Fastest Speed 50 | 50 100 125 320 Average Speed 189 | 96 142 171 320 Slowest Speed 320 | 100 195 200 320 Overloaded Moves . | . . . . Propulsion Burnouts . | . . . . Robots Hopped . | . . . . Potential Cave-ins . | . . . . Cave-ins Triggered . | . . . . Exploration Rate (%) 45 | 25 47 36 72 Regions Visited 3 Branch Regions 1 Pre-discovered Areas . | . . . . Known Exits Taken 1 | . . 1 . Unknown Exits Taken 2 | 1 1 . . Scrap Searched 1 | . . . 1 Spaces Dug 2 | . . . 2 Terrain Destroyed 2 | . . . 2 Melee 2 | . . . 2 Projectile . | . . . . AOE . | . . . . Terrain Rammed . | . . . . Walls Destroyed . | . . . . Machines Disabled . | . . . . Actions | -11 -10 -9 -9 --------- Run | Yrd Mat Mat Min Total 3218 | 1568 459 727 464 Wait 1394 | 1231 69 71 23 Move 1571 | 314 308 543 406 Hop . | . . . . Pick Up 50 | 7 24 17 2 Fast Attach 4 | 2 . 2 . Attach 27 | 2 8 13 4 Detach 1 | . 1 . . Swap 8 | . 5 1 2 Drop 10 | . 4 3 3 Fire 145 | 12 40 75 18 Melee 2 | . . . 2 Ram 2 | . . 2 . Kick . | . . . . Crush 4 | . . . 4 Escape Stasis . | . . . . Rewire . | . . . . Trap . | . . . . Miscellaneous . | . . . . Route ------- -11/Scrapyard -10/Materials (discovered 2 exits: *Mat / *Min) -9/Materials (discovered 3 exits: [*Mat] / *Min x2) -9/Mines (discovered 1 exit: [*Mat]) History --------- Turn | Location | Event 10 | -11/Scrapyard | Discovered new exit (range 16) 1287 | -11/Scrapyard | Assembled infested the area 1583 | -11/Scrapyard | Entered Materials 1584 | -10/Materials | Build established: Mutant 1990 | -10/Materials | Identified exit to Mines 2119 | -10/Materials | Discovered new exit (range 3) 2247 | -10/Materials | Entered another Materials area 2247 | -9/Materials | Evolved 2 slots: Utility x1, Weapon x1 2411 | -9/Materials | Discovered new exit (range 11) 2643 | -9/Materials | Core integrity fell below 50% 2956 | -9/Materials | Discovered new exit (range 16) 3043 | -9/Materials | Core integrity fell below 20% 3067 | -9/Materials | Identified exit to Mines 3186 | -9/Materials | Repaired Arm. Wheel+ 3505 | -9/Materials | Entered Mines 3681 | -9/Mines | Discovered new exit (range 9) 3916 | -9/Mines | Learned Materials stockpile data 3974 | -9/Mines | Build established: Gunner 4407 | -9/Mines | Received a Rocket Launcher from a helpful Derelict 4433 | -9/Mines | Build established: Scavenger-Skirmisher 4904 | -9/Mines | Destroyed by S-10 Pest with Light Assault Rifle Last Messages --------------- 04630_ System corrupted: FCS attempts to trigger Beam Rifle. 04630_ System corrupted: Beam Rifle misfires. 04666_ System corrupted: Matter fused (-6). 04702_ Searching scrap... 04702_ Found 37 Matter. 04702_ Found Cooling System. 04702_ Found 45 Matter. 04703_ Acquired 16 matter. 04716_ System corrupted: Energy discharge (-64). 04759_ System corrupted: Matter fused (-8). 04769_ Acquired 8 matter. 04780_ System corrupted: Energy discharge (-78). 04851_ S-10 Pest destroyed. 04853_ Flight Unit fried. 04853_ S-10 Pest destroyed. 04860_ U-05 Engineer lays Concrete. 04868_ Acquired 15 matter. 04868_ U-05 Engineer lays Concrete. [Achievement: First Step to Greatness] Map ----- +----------------------------------------------------+ | ??????????????????????## ^ ##############% | | ???????????????????##### ^ #############% | | ???????????????????######### ## # * | | ??????????????????? ###### #^ ### ########## | | ###????????????????## ##??## # # #### ########?# | | ####????????????##### ##??## # ^ #### ##???????# | | ####???????????##### ######^ #### ##???????# | | ########??????## ################ ##???##### | | ########?????## ## % *% ##???# | | ########## ############# ########???# ### | | ######### ############# ########???# #?# | | ##????????### ###???????## #?# | | ############???????? ###??????## ### | | ################???## ##????### ## | | ###################### ##???## | | ############ ###### ##???# | | ### ### ##???# | | ## ### [%= ###???## ### | | ### #"## #### =%## ##?????## ##?## | | ######### #### #### #??????#####???# | | ####### #### ## ##### ????????????????# | | ##???## ### ## ###?## ????????????????# | | ##???## ###### ### ###### ????????????????? | | ##???## ####### ##### ###### ????????????????? | | ##???## ##??########### ##### ????????? | | ##?#### ##???######?### @ s t????????? | | ####### ##?????????### s????????? | | ##### ##?????????## ????????? | | #### ! ##?????????## ?????????? | | #### %%####?????????### """ ?????????? | | ## #####?????????######### """ ###?????????? | | ## # ####????????????######### """ ?####?????????? | | ## # ###????????????????????## ???????????????? | | ## # ##???????????????????????# ??????????????? | | ## ##???????????????????????#### ??????????????? | | # ##???????????????????????#####??????????????? | | # ##??????????????????????????????????????????? | | # ##??????????????????????????????????????????? | | ##??????????????????????????????????????????? | | ###??????????????????????????????????????????? | | ###??????????????????????????????????????????? | | # ###???????????????????????????????????????????? | | ######???????????????????????????????????????????? | | #####????????????????????????????????????????????? | | ?????????????????????????????????????????????????? | | ?????????????????????????????????????????????????? | | ?????????????????????????????????????????????????? | | ?????????????????????????????????????????????????? | | ?????????????????????????????????????????????????? | | ?????????????????????????????????????????????????? | +----------------------------------------------------+ Best States ------------- Heat Dissipation 38 Energy Generation 14 Energy Capacity 280 Matter Stores 300 Matter Capacity 300 Sight Range 16 Terrain Scan Density 10 Armor Coverage 150 Evasion (%) 50 Recoil Reduction 2 Item Schematics ----------------- None Robot Schematics ------------------ None Fabricated ------------ Nothing Repaired ---------- Arm. Wheel | 71% | -9/Materials Studied --------- Autogun | -9/Materials | Hacked Arm. Wheel | -9/Materials | Hacked Alien Tech Used ----------------- None Achievements -------------- Curiosity Killed The Cat First Step to Greatness Challenges ------------ None Game ------ Seed JunkControlThermoblaster Manual? 0 Play Time 00:25:36 Cumulative 5.0 hours Start 2026.08.01 @ 11:54:22 End 2026.08.01 @ 12:20:09 Sessions 1 Manual Loads 0 Difficulty Rogue Special Mode None Game No. 2 Rogue 2 Adventurer 0 Explorer 0 Win Type - Total 1 Types 1/0/0/0/0/0/0/0/0/0 Lore% 6 Gallery% 7 Achievement% 11 Wizard Run 0 Options --------- Layout 1 ASCII 0 Keyboard 0 Movement Mouse Keybinds 0 Fullscreen 1 Font 32/SmallcapsGlow Map View 50x35 Zoom Use 0% Tactical HUD 1 Map Filters NONE Filters NONE Steam 0 RUN: c1057c57-5689-49f2-87fb-a37f4b57670b